[Event "European Women-ch 2023"]
[Site "Petrovac"]
[Date "2023.03.20"]
[Round "3.1"]
[White "Fataliyeva, Ulviyya"]
[Black "Antolak, Julia"]
[Result "1-0"]
[ECO "A15"]
[WhiteElo "2427"]
[BlackElo "2276"]
[Annotator "TA"]
[PlyCount "77"]
[EventDate "2023.03.15"]
[EventType "swiss"]
[EventCountry "MNE"]
[SourceTitle "playchess.com"]
[Source "ChessBase"]
[SourceQuality "1"]
[TimeControl "40/5400+30:1800+30"]

{[%evp 10,77,13,-9,16,16,18,-1,44,12,22,0,0,0,26,20,24,22,50,0,9,8,0,0,32,55,94,96,184,181,241,213,262,248,255,135,244,234,292,272,432,414,408,365,470,428,507,497,731,689,687,563,737,702,688,687,748,764,883,829,826,800,803,809,806,808,808,793,1260,1214]} 1. c4 {[%emt 0:00:53]} Nf6 {[%emt 0:00:23]} 2. Nf3 {[%emt 0:00:07]} g6 {[%emt 0:00:43]} 3. b4 {[%emt 0:00:51]} Bg7 {[%emt 0:00:21]} 4. Bb2 {[%emt 0:00:04]} d6 {[%emt 0:00:46]} 5. g3 {[%emt 0:00:14]} O-O {[%emt 0:00:56]} 6. Bg2 {[%emt 0:00:05]} a5 {[%emt 0:06:40] A15: English Opening: 1...Nf6.} 7. b5 {[%emt 0:02:27]} e5 {[%emt 0:02:13]} 8. O-O {[%emt 0:00:11]} c6 {[%emt 0:04:23] [#] The position is equal.} 9. Na3 $146 {[%emt 0:06:28]} ({Predecessor:} 9. Nc3 h6 10. d3 Nh5 11. Rb1 f5 12. e3 Kh7 13. bxc6 bxc6 14. Na4 Nd7 15. c5 dxc5 {1-0 Flores,D (2588)-Montoro,G (2001) Mar del Plata op 47th 2016 (1)}) 9... Re8 {[%emt 0:05:27]} 10. d3 {[%emt 0:06:53]} Nbd7 {[%emt 0:04:35]} 11. Nd2 {[%emt 0:06:01]} c5 {[%emt 0:09:36]} 12. Bc3 {[%emt 0:04:35]} Nb6 {[%emt 0:08:21]} 13. Rc1 {[%emt 0:04:08]} Qc7 {[%emt 0:03:39]} 14. Nb3 {[%emt 0:16:08]} a4 {[%emt 0:03:24]} 15. Nd2 {[%emt 0:00:34]} d5 {[%emt 0:03:30]} 16. cxd5 {[%emt 0:01:33]} Nbxd5 {[%emt 0:00:40]} 17. Bb2 {[%emt 0:07:58]} b6 {[%emt 0:07:26] Black is now going downhill.} 18. Rc4 {[%emt 0:01:01]} Bb7 {[%emt 0:07:34]} (18... Qa7 $16 {was necessary.}) 19. Rxa4 $18 {[%emt 0:00:48]} Nb4 {[%emt 0:01:02]} (19... Rad8 {is a better defense.} 20. Nac4 Qb8) 20. Bxb7 {[%emt 0:02:42]} Rxa4 {[%emt 0:01:35]} 21. Qxa4 {[%emt 0:00:21]} Qxb7 {[%emt 0:00:05] [#]} 22. Ndc4 {[%emt 0:01:08]} ({Only move:} 22. Qb3 $1 $18) 22... Ra8 {[%emt 0:04:42]} (22... e4 $16) 23. Qb3 {[%emt 0:00:10]} Nd7 {[%emt 0:00:55]} 24. Nb1 {[%emt 0:02:23]} (24. Nd6 Qd5 $16) 24... Rxa2 {[%emt 0:03:58]} (24... Bf8 $142 25. Nc3 (25. Nxe5 Nxe5 26. Bxe5 Rxa2 $16) 25... Nd5 26. Nxe5 Nxe5) 25. Nc3 {[%emt 0:02:32] Black must now prevent Nd6.} Rxb2 {[%emt 0:03:04]} 26. Nxb2 {[%emt 0:01:46]} h5 {[%emt 0:00:06]} 27. Nc4 {[%emt 0:00:48] White is clearly winning.} Nf6 {[%emt 0:00:23]} 28. Ra1 {[%emt 0:00:41]} h4 {[%emt 0:00:53]} (28... Bf8 $142 29. Qa4 Nbd5 30. Nxd5 Nxd5) 29. Qa4 {[%emt 0:06:50]} (29. Nxe5 h3 30. f3 (30. Nxg6 $2 Qg2#) 30... Ne8 $18) 29... Qd7 {[%emt 0:01:44]} 30. Nxb6 {[%emt 0:01:19]} ({Weaker is} 30. Nxe5 Qd4 $14) 30... Qd4 {[%emt 0:00:09] [#]} 31. Ne4 {[%emt 0:00:19]} Nxe4 {[%emt 0:00:56]} 32. dxe4 {[%emt 0:00:45]} h3 {[%emt 0:00:26]} 33. Rd1 {[%emt 0:01:07]} Qb2 {[%emt 0:00:25]} 34. Qa8+ {[%emt 0:00:14]} Kh7 {[%emt 0:00:44]} 35. Qc8 {[%emt 0:00:42][%csl LRc5,LRh3]} Qxe2 {[%emt 0:00:25]} 36. Qxh3+ {[%emt 0:00:04]} Bh6 {[%emt 0:00:06]} 37. Qf1 {[%emt 0:01:07]} Qxe4 {[%emt 0:00:40]} 38. Nd7 {[%emt 0:02:01] Hoping for Nf6+.} Qf5 {[%emt 0:01:34] Prevents Nf6+} 39. b6 {[%emt 0:01:34] Weighted Error Value: White=0.15 (very precise) /Black=0.43} 1-0

[Event "European Women-ch 2023"]
[Site "Petrovac"]
[Date "2023.03.20"]
[Round "3.1"]
[White "Bivol, Alina"]
[Black "Javakhishvili, Lela"]
[Result "1/2-1/2"]
[ECO "B40"]
[WhiteElo "2365"]
[BlackElo "2443"]
[Annotator "TA"]
[PlyCount "44"]
[EventDate "2023.03.15"]
[EventType "swiss"]
[EventCountry "MNE"]
[SourceTitle "playchess.com"]
[Source "ChessBase"]
[SourceQuality "1"]
[TimeControl "40/5400+30:1800+30"]

{[%evp 9,44,12,18,25,27,26,36,24,29,0,0,0,0,-6,3,0,-4,-18,-9,-17,0,-14,9,0,0,0,0,-2,0,0,0,0,0,0,0,0,2]} 1. e4 {[%emt 0:00:05]} c5 {[%emt 0:00:11]} 2. Nf3 {[%emt 0:00:07]} e6 {[%emt 0:00:07]} 3. g3 {[%emt 0:00:12]} d5 {[%emt 0:00:21]} 4. exd5 {[%emt 0:00:38]} exd5 {[%emt 0:00:06]} 5. d4 {[%emt 0:00:23]} Nc6 {[%emt 0:00:15]} 6. Bg2 {[%emt 0:02:03] B40: Sicilian: 2...e6, Unusual lines.} Nf6 {[%emt 0:00:08]} 7. O-O {[%emt 0:02:51]} Be7 {[%emt 0:00:09]} 8. dxc5 {[%emt 0:02:14] White is slightly better.} Bxc5 {[%emt 0:00:10]} 9. Nbd2 {[%emt 0:02:53][%cal Bb1d2,Bd2b3,Bb3d4][%mdl 32]} O-O {[%emt 0:01:03] The position is equal.} 10. Nb3 {[%emt 0:00:35]} Bb6 {[%emt 0:00:19]} 11. c3 {[%emt 0:04:31]} Bg4 {[%emt 0:10:49]} 12. h3 {[%emt 0:01:08]} Bf5 {[%emt 0:00:23] [#]} 13. Nbd4 $146 {[%emt 0:26:07]} ({Predecessor:} 13. Nfd4 Be4 14. Bg5 h6 15. Bxe4 dxe4 16. Nxc6 Qc7 17. Bf4 Qxc6 18. Qd6 Qb5 19. Qe5 {0-1 Velikic,A (2151)-Miladinovic,L (2079) Belgrade Nedeljkovic Memorial 10th rapid 2017 (5)}) 13... Be4 {[%emt 0:01:51]} 14. Bf4 {[%emt 0:01:23]} Rc8 {[%emt 0:04:51]} 15. Re1 {[%emt 0:13:23]} Na5 {[%emt 0:18:20][%cal Bc6a5,Ba5c4,Bc4d2][%mdl 32]} 16. Nd2 {[%emt 0:14:45][%cal Rd2e4]} Bxg2 {[%emt 0:04:44]} 17. Kxg2 {[%emt 0:00:02]} Bxd4 {[%emt 0:09:03]} 18. cxd4 {[%emt 0:00:01]} Nc4 {[%emt 0:01:47]} 19. b3 {[%emt 0:06:47]} Nxd2 {[%emt 0:09:12]} 20. Bxd2 {[%emt 0:00:24]} Qd7 {[%emt 0:01:56]} 21. Rc1 {[%emt 0:03:41]} Ne4 {[%emt 0:03:16]} 22. f3 {[%emt 0:03:17]} Nxd2 {[%emt 0:08:46] Not much happened in this game.   Weighted Error Value: White=0.06 (flawless) /Black=0.03 (flawless)} 1/2-1/2

[Event "European Women-ch 2023"]
[Site "Petrovac"]
[Date "2023.03.20"]
[Round "3.1"]
[White "Sieber, Fiona"]
[Black "Makka, Ioulia"]
[Result "0-1"]
[ECO "C28"]
[WhiteElo "2217"]
[BlackElo "1949"]
[Annotator "TA"]
[PlyCount "116"]
[EventDate "2023.03.15"]
[EventType "swiss"]
[EventCountry "MNE"]
[SourceTitle "playchess.com"]
[Source "ChessBase"]
[SourceQuality "1"]
[TimeControl "40/5400+30:1800+30"]

{[%evp 10,116,30,26,33,32,38,45,58,54,68,-23,15,22,79,74,69,74,84,81,105,70,163,187,207,130,108,116,105,-13,-20,-71,0,0,0,0,29,4,14,-20,0,-35,-34,-33,-54,-176,-61,-52,-15,-30,-14,-8,-8,-38,-30,-31,-16,-34,-14,-27,-19,-27,0,0,0,0,0,0,0,-20,-25,-125,-118,-311,-310,-588,-574,-588,-463,-449,-306,-549,-520,-415,-210,-388,-210,-210,-210,-553,-553,-1051,-700,-29963,-9705,-29976,-29977,-29981,-29982,-29983,-29978,-29981,-29975,-29974,-29975,-29975,-29976,-29983,-29984]} 1. e4 {[%emt 0:00:03]} e5 {[%emt 0:00:13]} 2. Nc3 {[%emt 0:04:14]} Nc6 {[%emt 0:02:22]} 3. Bc4 {[%emt 0:00:20]} d6 {[%emt 0:09:38]} 4. d3 {[%emt 0:00:54]} Nf6 {[%emt 0:07:20]} 5. f4 {[%emt 0:03:27]} exf4 {[%emt 0:08:41]} 6. Bxf4 {[%emt 0:00:36]} Na5 {[%emt 0:01:44] C28: Vienna Game: 2...Nf6 3 Bc4 Nc6.} 7. Qe2 {[%emt 0:13:29] [#]} Bg4 $146 {[%emt 0:06:40]} ({Predecessor:} 7... Nxc4 8. dxc4 Be7 9. O-O-O Bg4 10. Nf3 Qc8 11. Nd5 Nxd5 12. exd5 Qf5 13. Bg3 Bxf3 14. gxf3 {1-0 Djingarova,E (2315)-Bratimirova,D (2076) EU-ch (Women) 3rd 2002 (1)}) 8. Nf3 {[%emt 0:00:21]} Nxc4 {[%emt 0:02:03] White is slightly better.} 9. dxc4 {[%emt 0:00:07]} Nh5 {[%emt 0:05:48]} 10. g3 {[%emt 0:11:02]} ({White should play} 10. Be3 $14) 10... Be7 {[%emt 0:02:28]} 11. O-O-O {[%emt 0:00:37]} Qc8 {[%emt 0:04:43]} (11... O-O $11) 12. Nd5 $1 $16 {[%emt 0:03:22] e5 is the strong threat.} Bd8 {[%emt 0:01:33] [#]} 13. h3 $1 {[%emt 0:06:02]} Nxf4 {[%emt 0:09:33]} (13... Be6 14. Nd4) 14. gxf4 {[%emt 0:00:07]} (14. Nxf4 Be6 $14) 14... Bh5 {[%emt 0:01:39]} 15. Qg2 {[%emt 0:03:12]} Rg8 {[%emt 0:06:03]} (15... Bxf3 $14 16. Qxf3 O-O) 16. e5 {[%emt 0:04:25]} c6 {[%emt 0:07:59] [#]} 17. Nf6+ {[%emt 0:14:58][%mdl 512]} Bxf6 {[%emt 0:00:57]} 18. exf6 {[%emt 0:00:06]} Qf5 {[%emt 0:02:00] Black is weak on the dark squares} 19. Qe2+ {[%emt 0:01:28]} (19. fxg7 Qxf4+ 20. Kb1 (20. Nd2 $2 Bxd1 21. Re1+ Kd7 $19) 20... Bxf3 $17) ({Better is} 19. Rhe1+ $16 Kf8 20. Qd2 Qxf6 21. Ng5 (21. Qxd6+ $2 Qxd6 22. Rxd6 Bxf3 $19)) 19... Qe6 $11 {[%emt 0:03:10]} 20. Rhe1 {[%emt 0:13:36]} (20. Qxe6+ $11 fxe6 21. f7+ {[%mdl 64] Decoy} (21. Rhf1 gxf6 22. Rxd6 Ke7 $15) 21... Kxf7 22. Ng5+ Ke7 23. Rde1) 20... O-O-O {[%emt 0:02:40]} (20... gxf6 $2 21. Qf2 $18 (21. Qxe6+ fxe6 22. Rxe6+ Kf7 $15) (21. Rxd6 Qxe2 22. Rxe2+ Kf8 $15)) (20... Qxe2 $1 $17 21. Rxe2+ Kf8) 21. Qxe6+ {[%emt 0:04:41]} fxe6 {[%emt 0:00:03]} 22. Rd3 {[%emt 0:00:11]} Kd7 {[%emt 0:10:12]} 23. f5 {[%emt 0:04:14]} exf5 {[%emt 0:01:40]} 24. Re7+ {[%emt 0:00:18]} Kc8 {[%emt 0:00:03]} 25. fxg7 {[%emt 0:01:11] Strongly threatening Rb3.} Rd7 {[%emt 0:01:03]} 26. Rxd7 {[%emt 0:03:24]} Kxd7 $15 {[%emt 0:00:03][%mdl 4096] Endgame KRB-KRN} 27. Nd4 {[%emt 0:04:07] [#]} (27. c5 $1 $15) 27... Bg6 {[%emt 0:00:53]} ({Inferior is} 27... Rxg7 28. Nxf5 Rg1+ 29. Kd2 $17) (27... f4 $1 $19 28. Rd2 Rxg7) 28. Rb3 {[%emt 0:00:33]} Kc8 {[%emt 0:01:08]} (28... b6 $5 {[%cal Rc6c5]}) 29. Rg3 {[%emt 0:01:17]} Rxg7 {[%emt 0:01:34]} (29... f4 $5 {[%cal Rf4g3]} 30. Rg4 Kd7 $11) 30. Nxf5 {[%emt 0:00:17]} Rd7 {[%emt 0:00:16]} 31. Nd4 {[%emt 0:00:24]} Re7 {[%emt 0:00:22]} 32. Kd2 {[%emt 0:00:32]} Kc7 {[%emt 0:00:43]} 33. Rf3 {[%emt 0:00:51]} a6 {[%emt 0:00:42]} (33... Re4 $5 {[%cal Re4d4]} 34. Rf4 {[%mdl 64] Decoy} Rxf4 35. Ne6+ Kd7 36. Nxf4 Bf5 $15) 34. c3 {[%emt 0:01:09]} Bh5 {[%emt 0:00:47]} 35. Rf6 {[%emt 0:00:25]} Bg6 {[%emt 0:00:16]} 36. Ne6+ {[%emt 0:00:12]} Kb6 {[%emt 0:00:43]} 37. Nf8 {[%emt 0:00:29]} Bb1 {[%emt 0:00:14]} 38. Rxd6 {[%emt 0:00:45]} Bxa2 {[%emt 0:00:17]} 39. Rd4 {[%emt 0:00:55]} Bb1 {[%emt 0:00:32]} 40. b4 {[%emt 0:00:00]} (40. Nd7+ $11 {keeps the balance.} Kc7 41. Nf6) 40... Bf5 $17 {[%emt 0:00:00]} 41. Rf4 $2 {[%emt 0:19:23] [#]} (41. Rd6 $17 {was necessary.}) 41... Rf7 $1 $19 {[%emt 0:01:39]} ({Weaker is} 41... Bxh3 42. Rf3 Bg4 43. Rf4 $17) 42. Rxf5 $2 {[%emt 0:02:57]} (42. Nxh7 {was forced.} Rd7+ {[%mdl 64] Zwischenzug} 43. Kc1 Bxh7 44. h4) 42... Rxf5 {[%emt 0:00:08]} 43. Nxh7 {[%emt 0:00:06] KR-KN} Rh5 {[%emt 0:00:37]} 44. Nf6 {[%emt 0:00:29]} Rxh3 {[%emt 0:00:16]} 45. Nd7+ $2 {[%emt 0:00:18]} (45. Kc2 {was worth a try.}) 45... Kc7 {[%emt 0:00:16]} 46. Nc5 {[%emt 0:00:03]} Rh8 {[%emt 0:05:26]} (46... Rh5 $142 {[%cal Oh5c5] Threatens to win with ...Rxc5!} 47. Nd3 b6) 47. Kd3 $2 {[%emt 0:01:51]} (47. Nb3 {was called for.}) 47... Ra8 {[%emt 0:00:59]} (47... Rh5 $142 {[%cal Oh5c5] ...Rxc5! would be deadly.} 48. Ne6+ Kd6) 48. Nb3 {[%emt 0:00:55]} b6 {[%emt 0:09:36]} 49. Kc2 $2 {[%emt 0:01:03]} (49. c5 {was the crucial defense.}) 49... a5 {[%emt 0:01:28][%cal Ba6a5,Ba5a4][%mdl 32]} 50. c5 {[%emt 0:02:19]} a4 {[%emt 0:06:42]} 51. cxb6+ {[%emt 0:00:02]} Kxb6 {[%emt 0:00:15]} 52. Nd4 {[%emt 0:03:05]} c5 {[%emt 0:01:29] Black mates.} 53. bxc5+ {[%emt 0:00:40]} Kxc5 {[%emt 0:00:04]} 54. Kb2 {[%emt 0:03:48]} Kc4 {[%emt 0:01:32]} 55. Nc2 {[%emt 0:00:05]} Rh8 {[%emt 0:01:46]} 56. Ne3+ {[%emt 0:01:40]} Kb5 {[%emt 0:02:47]} 57. Nd5 {[%emt 0:00:45]} Rd8 {[%emt 0:01:20]} 58. Ne3 {[%emt 0:00:56]} Rd2+ {[%emt 0:00:26] Never resign too early!   Weighted Error Value: White=0.68/Black=0.25 (precise)} 0-1

[Event "European Women-ch 2023"]
[Site "Petrovac"]
[Date "2023.03.20"]
[Round "3.2"]
[White "Bulmaga, Irina"]
[Black "Mammadova, Gulnar"]
[Result "1-0"]
[ECO "C13"]
[WhiteElo "2438"]
[BlackElo "2358"]
[Annotator "TA"]
[PlyCount "143"]
[EventDate "2023.03.15"]
[EventType "swiss"]
[EventCountry "MNE"]
[SourceTitle "playchess.com"]
[Source "ChessBase"]
[SourceQuality "1"]
[TimeControl "40/5400+30:1800+30"]

{[%evp 11,143,12,0,8,60,59,52,44,50,47,12,0,0,0,0,0,0,-17,0,-22,5,0,11,3,27,0,50,42,54,58,114,114,131,97,125,124,127,25,25,22,40,20,118,122,112,101,154,133,215,204,306,297,288,296,259,237,214,171,163,162,359,346,340,325,316,277,649,643,643,496,496,496,503,487,454,391,433,392,392,372,392,350,348,262,934,897,1573,19,1111,870,29954,29954,29961,29962,29959,29963,29963,29961,29957,29964,29957,29962,29963,29965,29965,29965,29968,29966,29961,29969,29969,29970,29972,29973,29973,29972,29974,29975,29975,29976,29977,29978,29978,29979,29980,29981,29981,29976,29982,29978,29983,29979,29979,29978]} 1. e4 {[%emt 0:00:05]} e6 {[%emt 0:00:06]} 2. d4 {[%emt 0:00:09]} d5 {[%emt 0:00:06]} 3. Nc3 {[%emt 0:00:07]} Nf6 {[%emt 0:00:16]} 4. Bg5 {[%emt 0:00:14]} dxe4 {[%emt 0:00:16]} 5. Nxe4 {[%emt 0:00:10]} Be7 {[%emt 0:00:08]} 6. Bxf6 {[%emt 0:00:28]} gxf6 {[%emt 0:00:17]} 7. Nc3 {[%emt 0:00:24] C13: French: Classical System: 4 Bg5 Be7, Alekhine-Chatard Attack.} b6 {[%emt 0:10:40] Recently 7...c6 got a lot of attention.} (7... a6 $11) 8. Qf3 $14 {[%emt 0:00:51]} c6 {[%emt 0:00:22]} 9. O-O-O {[%emt 0:04:13] White is slightly better.} Bb7 {[%emt 0:04:21] [#]} 10. Nge2 $146 {[%emt 0:10:21]} ({Predecessor:} 10. Qh5 Qd6 11. Nf3 Nd7 12. g3 h6 13. Bc4 Kf8 14. Rhe1 f5 15. Ne2 Nf6 16. Qh3 {1-0 Smeets,J (2598)-Baskin,R (2402) Bundesliga 1617 2016 (10.4)}) 10... Nd7 {[%emt 0:03:18]} 11. g4 {[%emt 0:06:44]} h5 {[%emt 0:06:21]} 12. h3 {[%emt 0:06:42]} Qc7 {[%emt 0:01:33]} 13. Bg2 {[%emt 0:01:29][%cal Oc3b5]} O-O-O {[%emt 0:01:03]} 14. Ng3 {[%emt 0:05:15]} h4 {[%emt 0:07:06]} 15. Nge2 {[%emt 0:04:17]} Kb8 {[%emt 0:01:49]} (15... b5 {with more complications.} 16. Kb1 b4 17. Na4 Qa5) 16. Kb1 {[%emt 0:06:13]} b5 {[%emt 0:04:57]} 17. Nc1 {[%emt 0:02:22]} Rhg8 {[%emt 0:04:08]} (17... b4 {looks sharper.} 18. Na4 Qa5 19. b3 Qd5) 18. Nd3 {[%emt 0:07:20]} a6 {[%emt 0:07:49]} (18... b4 $11 19. Na4 Nb6) 19. Rhe1 {[%emt 0:03:40]} Rg5 {[%emt 0:19:59]} 20. Qe2 {[%emt 0:04:16]} Bd6 {[%emt 0:02:00]} ({Black should try} 20... Rgg8 $14) 21. Ne4 $16 {[%emt 0:01:55]} Rgg8 {[%emt 0:02:21]} 22. a3 {[%emt 0:09:25]} f5 {[%emt 0:02:06]} 23. Nxd6 {[%emt 0:02:18]} Qxd6 {[%emt 0:00:07]} 24. Ne5 {[%emt 0:01:47]} (24. f4 $16) 24... Nxe5 $11 {[%emt 0:02:02]} 25. dxe5 {[%emt 0:01:55]} Qc7 {[%emt 0:02:15]} 26. Rxd8+ {[%emt 0:00:39]} Rxd8 {[%emt 0:00:03]} (26... Qxd8 $11 27. Bf3 fxg4 28. Bxg4 c5) 27. gxf5 $16 {[%emt 0:00:49]} exf5 {[%emt 0:00:07]} 28. Qh5 {[%emt 0:01:27][%csl LRf5,LRh4]} Qd7 {[%emt 0:01:09]} ({Better is} 28... Rd2) 29. Bf3 {[%emt 0:02:02][%cal Oe1d1] Rd1! is the strong threat. White has more active pieces.} Qe6 {[%emt 0:01:12]} (29... Bc8 $16 {might work better.}) 30. Qxh4 $18 {[%emt 0:01:16]} Rd2 {[%emt 0:00:52]} (30... Kc7 $142 31. Qg3 Rd2) 31. Kc1 {[%emt 0:09:29]} Rd7 {[%emt 0:00:14] Threatens to win with ...Qa2.} 32. Rd1 {[%emt 0:02:54]} Rxd1+ {[%emt 0:00:36]} 33. Bxd1 {[%emt 0:00:22] Strongly threatening Qf4.} Qxe5 {[%emt 0:01:02][%mdl 4096] Endgame KQB-KQB} 34. Qg3 {[%emt 0:00:07]} f4 {[%emt 0:02:14]} 35. Qc3 {[%emt 0:00:49]} Qxc3 {[%emt 0:03:19]} (35... Qe7 36. Qd4 Qg5) 36. bxc3 {[%emt 0:00:02] KB-KB} Kc7 {[%emt 0:00:04]} 37. h4 {[%emt 0:02:24][%cal Bh3h4,Bh4h5,Bh5h6][%mdl 32]} Kd6 {[%emt 0:00:53]} 38. h5 {[%emt 0:00:25]} c5 $2 {[%emt 0:05:04]} (38... Bc8 39. h6 Bf5) 39. h6 {[%emt 0:01:26] And now h7 would win.} Be4 {[%emt 0:00:04]} 40. Be2 {[%emt 0:00:00] Black must now prevent Bd3.} c4 {[%emt 0:00:00] [#] Dodges Bd3} 41. Bf3 $1 {[%emt 0:05:48][%mdl 576] Deflection, Promotion} Bh7 {[%emt 0:05:09]} (41... Bxf3 $2 42. h7) (41... Bg6 42. Bh5) 42. Bb7 {[%emt 0:03:23]} a5 {[%emt 0:01:01]} 43. Kd2 {[%emt 0:06:02]} Bg6 {[%emt 0:03:58]} 44. Ba6 {[%emt 0:04:43]} Kc5 {[%emt 0:00:29]} 45. f3 {[%emt 0:02:07]} Kb6 {[%emt 0:06:58]} 46. Bc8 {[%emt 0:00:03]} Bh7 {[%emt 0:02:03]} 47. Bd7 {[%emt 0:00:53] a4 would be deadly.} Kc5 $2 {[%emt 0:00:37]} (47... a4 48. Be8 f6) 48. Be8 {[%emt 0:00:08]} f6 {[%emt 0:00:06]} 49. Bf7 $2 {[%emt 0:02:50]} ({White has to play} 49. a4 $18 bxa4 50. Kc1 (50. Bxa4 Kd6 $16)) 49... Kd6 $2 {[%emt 0:00:52][%mdl 8192] [#] This costs Black the game.} (49... a4 $11) 50. a4 $1 {[%emt 0:03:47][%mdl 512]} Kc5 {[%emt 0:01:46]} (50... bxa4 51. Bxc4) 51. axb5 {[%emt 0:00:28] White mates.} Kxb5 {[%emt 0:00:11]} 52. Kc1 {[%emt 0:00:29]} Kc5 {[%emt 0:03:38]} 53. Kb2 {[%emt 0:00:09]} Kb5 {[%emt 0:00:07]} 54. Ka3 {[%emt 0:00:41]} Kc5 {[%emt 0:00:04]} 55. Ka4 {[%emt 0:00:41]} Kb6 {[%emt 0:00:39]} 56. Bxc4 {[%emt 0:00:58]} Bxc2+ {[%emt 0:00:05]} 57. Ka3 {[%emt 0:00:54]} Bh7 {[%emt 0:00:11]} 58. Kb2 {[%emt 0:01:30]} Kc6 {[%emt 0:02:33]} 59. Bb3 {[%emt 0:00:07]} Kd6 {[%emt 0:00:22]} 60. Bc2 {[%emt 0:00:34]} f5 {[%emt 0:00:30]} 61. Ka3 {[%emt 0:00:38]} Ke7 {[%emt 0:00:28]} 62. Ka4 {[%emt 0:00:34]} Kf6 {[%emt 0:00:04]} 63. Kxa5 {[%emt 0:01:04]} Bg8 {[%emt 0:00:06]} 64. Kb5 {[%emt 0:00:22]} Bd5 {[%emt 0:00:23]} 65. Bd1 {[%emt 0:00:10]} Kg6 {[%emt 0:00:12]} 66. c4 {[%emt 0:00:24][%cal Bc3c4,Bc4c5,Bc5c6][%mdl 32]} Be6 {[%emt 0:00:24]} 67. c5 {[%emt 0:00:20]} Kxh6 {[%emt 0:00:04]} 68. c6 {[%emt 0:01:20]} Kg5 {[%emt 0:00:06]} 69. Kc5 {[%emt 0:01:40]} Bc8 {[%emt 0:02:42]} 70. Kd6 {[%emt 0:00:21]} Kh4 {[%emt 0:00:22]} 71. Bb3 {[%emt 0:00:23]} Kg3 {[%emt 0:00:18]} 72. Bd5 {[%emt 0:00:08] Weighted Error Value: White=0.27 (precise) /Black=0.37} 1-0